fUSD/lending_fUSD_20250923
["ID","MTS","AMOUNT","RATE_DAILY","PERIOD"]
[387187902,1758623438590,-4523.86884064,0.0002246,2]
[387187903,1758623438600,-169.92549347,0.00022562,2]
[387187904,1758623438610,-500.0,0.000226,2]
[387187905,1758623438620,-9655.88780175,0.00022615,2]
[387187906,1758623438629,-218.25,0.00022654,2]
[387187907,1758623438639,-4523.86884064,0.00022951,2]
[387187908,1758623438648,-257616.67554032,0.00023042,2]
[387187909,1758623438659,-257616.67554032,0.00023058,2]
[387187910,1758623438668,-257616.67554032,0.00023071,2]
[387187911,1758623438678,-257616.67554032,0.00023071,2]
[387187912,1758623438692,-9655.88780175,0.00023085,2]
[387187913,1758623438703,-500.0,0.000231,2]
[387187914,1758623438713,-257616.67554032,0.00023107,2]
[387187915,1758623438723,-257616.67554032,0.00023184,2]
[387187916,1758623438733,-257616.67554032,0.00023195,2]
[387187917,1758623438743,-150.0,0.000234,4]
[387187918,1758623438753,-150.0,0.000234,4]
[387187919,1758623438765,-150.0,0.000234,4]
[387187920,1758623438776,-150.0,0.000234,4]
[387187921,1758623438785,-178.00298222,0.000234,4]
[387187922,1758623438795,-150.0,0.000234,4]
[387187923,1758623438804,-150.0,0.000234,4]
[387187924,1758623438814,-150.0,0.000234,4]
[387187925,1758623438824,-150.0,0.000234,4]
[387187926,1758623438834,-150.0,0.000234,4]
[387187927,1758623438843,-150.0,0.000234,4]
[387187928,1758623438853,-150.0,0.000234,4]
[387187929,1758623438863,-4523.86884064,0.00023443,2]
[387187930,1758623438872,-620.76,0.000235,7]
[387187931,1758623438882,-9655.88780175,0.00023554,2]
[387187932,1758623438891,-206.69,0.00023569,2]
[387187933,1758623438902,-4523.0,0.00023645,2]
[387187934,1758623438912,-906.281,0.00023645,2]
[387187935,1758623438922,-1262.0,0.00023645,2]
[387187936,1758623438932,-4177.0,0.00023645,2]
[387187937,1758623438942,-572.9,0.00023645,2]
[387187938,1758623438953,-1582.0,0.00023645,2]
[387187939,1758623438963,-606.258,0.00023645,2]
[387187940,1758623438973,-1305.0,0.00023645,2]
[387187941,1758623438983,-899.0,0.00023645,2]
[387187942,1758623438992,-4231.0,0.00023645,2]
[387187943,1758623439002,-500.0,0.00023726,2]
[387187944,1758623439012,-150.0,0.00023833,4]
[387187945,1758623439021,-150.0,0.0002392,4]
[387187946,1758623439032,-4523.86884064,0.00023934,2]
[387187947,1758623439041,-1200.0,0.0002394,2]
[387187948,1758623439051,-9655.88780175,0.00024023,2]
[387187949,1758623439060,-150.0,0.0002405,4]
[387187950,1758623439070,-150.0,0.0002405,4]
[387187951,1758623439080,-150.0,0.0002405,4]
[387187952,1758623439089,-4000.0,0.00024073,4]
[387187953,1758623439099,-1000.0,0.00024115,2]
[387187954,1758623439108,-150.0,0.00024267,4]
[387187955,1758623439118,-173.94,0.00024406,2]
[387187956,1758623439127,-4523.86884064,0.00024426,2]
[387187957,1758623439137,-150.0,0.0002444,4]
[387187958,1758623439148,-9655.88780175,0.00024492,2]
[387187959,1758623439158,-150.0,0.00024592,7]
[387187960,1758623439167,-400.0,0.00024634,2]
[387187961,1758623439177,-200.0,0.00024645,2]
[387187962,1758623439187,-156.04,0.00024649,2]
[387187963,1758623439197,-154.84264107,0.00024671,2]
[387187964,1758623439208,-250.0,0.00024676,2]
[387187965,1758623439217,-150.0,0.000247,4]
[387187966,1758623439227,-150.0,0.000247,4]
[387187967,1758623439237,-150.0,0.000247,4]
[387187968,1758623439247,-150.0,0.000247,4]
[387187969,1758623439256,-150.0,0.000247,4]
[387187970,1758623439266,-150.0,0.000247,4]
[387187971,1758623439276,-150.0,0.000247,4]
[387187972,1758623439286,-150.0,0.000247,4]
[387187973,1758623439295,-150.0,0.000247,4]
[387187974,1758623439305,-3065.0,0.00024769,2]
[387187975,1758623439315,-213.81484291,0.00024773,2]
[387187976,1758623439324,-526.78976476,0.00024773,2]
[387187977,1758623439335,-500.91862636,0.00024773,2]
[387187978,1758623439344,-277.86760712,0.00024773,2]
[387187979,1758623439355,-500.0,0.00024773,2]
[387187980,1758623439366,-500.0,0.00024773,2]
[387187981,1758623439375,-500.0,0.00024773,2]
[387187982,1758623439385,-314.33835875,0.00024773,2]
[387187983,1758623439395,-500.0,0.00024773,2]
[387187984,1758623439405,-500.0,0.00024773,2]
[387187985,1758623439415,-501.64687316,0.00024773,2]
[387187986,1758623439425,-500.0,0.00024773,2]
[387187987,1758623439435,-500.0,0.00024773,2]
[387187988,1758623439444,-168.58812346,0.00024773,2]
[387187989,1758623439455,-500.0,0.00024773,2]
[387187990,1758623439465,-500.0,0.00024773,2]
[387187991,1758623439475,-500.0,0.00024773,2]
[387187992,1758623439485,-500.0,0.00024773,2]
[387187993,1758623439495,-152.13,0.0002479,2]
[387187994,1758623439505,-1000.0,0.00024799,2]
[387187995,1758623439515,-4975.57513198,0.00024799,2]
[387187996,1758623439525,-438605.9507247,0.000248,2]
[387187997,1758623439534,-496336.67184,0.000248,2]
[387187998,1758623439544,-151.0,0.000248,7]
[387187999,1758623439555,-151.0,0.000248,7]
[387188000,1758623439564,-184.206551,0.000248,7]
[387188001,1758623439574,-152.744421,0.000248,7]
[387188002,1758623439584,-151.0,0.000248,7]
[387188003,1758623439594,-151.0,0.000248,7]
[387188004,1758623439604,-151.0,0.000248,7]
[387188005,1758623439613,-151.0,0.000248,7]
[387188006,1758623439623,-156.606406,0.000248,7]
[387188007,1758623439633,-151.0,0.000248,7]
[387188008,1758623439643,-151.0,0.000248,7]
[387188009,1758623439653,-151.0,0.000248,7]
[387188010,1758623439663,-151.0,0.000248,7]
[387188011,1758623439673,-524.983422,0.000248,7]
[387188012,1758623439686,-524.983422,0.000248,7]
[387188013,1758623439695,-524.983422,0.000248,7]
[387188014,1758623439706,-524.983422,0.000248,7]
[387188015,1758623439716,-151.0,0.000248,7]
[387188016,1758623439727,-151.0,0.000248,7]
[387188017,1758623439736,-151.0,0.000248,7]
[387188018,1758623439746,-151.0,0.000248,7]
[387188019,1758623439757,-609.804775,0.000248,7]
[387188020,1758623439768,-609.804775,0.000248,7]
[387188021,1758623439778,-151.0,0.000248,7]
[387188022,1758623439788,-609.804775,0.000248,7]
[387188023,1758623439797,-609.804775,0.000248,7]
[387188024,1758623439807,-151.0,0.000248,7]
[387188025,1758623439816,-151.0,0.000248,7]
[387188026,1758623439826,-151.0,0.000248,7]
[387188027,1758623439835,-151.0,0.000248,7]
[387188028,1758623439845,-165.23,0.00024838,2]
[387188029,1758623439855,-2227.84,0.00024851,2]
[387188030,1758623439864,-31021.04199,0.00024875,2]
[387188031,1758623439874,-600.0,0.00024885,2]
[387188032,1758623439885,-200.0,0.00024885,2]
[387188033,1758623439895,-151.0,0.00024885,2]
[387188034,1758623439905,-151.0,0.00024885,2]
[387188035,1758623439915,-151.0,0.00024885,2]
[387188037,1758623439925,-151.0,0.00024885,2]
[387188038,1758623439935,-151.0,0.00024885,2]
[387188040,1758623439944,-151.0,0.00024885,2]
[387188041,1758623439955,-151.0,0.00024885,2]
[387188042,1758623439965,-151.0,0.00024885,2]
[387188043,1758623439974,-151.0,0.00024885,2]
[387188044,1758623439984,-151.0,0.00024885,2]
[387188045,1758623439993,-151.0,0.00024885,2]
[387188046,1758623440002,-151.0,0.00024885,2]
[387188047,1758623440012,-151.0,0.00024885,2]
[387188048,1758623440021,-151.0,0.00024885,2]
[387188049,1758623440031,-151.0,0.00024885,2]
[387188050,1758623440040,-151.0,0.00024885,2]
[387188051,1758623440050,-151.0,0.00024885,2]
[387188052,1758623440059,-151.0,0.00024885,2]
[387188053,1758623440068,-151.0,0.00024885,2]
[387188054,1758623440077,-151.0,0.00024885,2]
[387188055,1758623440087,-370338.849078,0.000249,2]
[387188056,1758623440096,-14644.56011361,0.000249,2]
[387188057,1758623440105,-163.76419,0.00024917,7]
[387188058,1758623440115,-609.804775,0.00024917,7]
[387188059,1758623440125,-609.804775,0.00024917,7]
[387188060,1758623440134,-609.804775,0.00024917,7]
[387188061,1758623440144,-609.804775,0.00024917,7]
[387188062,1758623440153,-151.0,0.00024917,7]
[387188063,1758623440163,-153.842065,0.00024917,7]
[387188064,1758623440173,-4523.86884064,0.00024917,2]
[387188065,1758623440182,-150.0,0.0002496,4]
[387188066,1758623440192,-9655.88780175,0.00024962,2]
[387188067,1758623440203,-151.0,0.00024962,7]
[387188068,1758623440212,-151.0,0.00024962,7]
[387188069,1758623440221,-152.436627,0.00024962,7]
[387188070,1758623440231,-151.0,0.00024962,7]
[387188071,1758623440240,-151.0,0.00024962,7]
[387188072,1758623440249,-151.0,0.00024962,7]
[387188073,1758623440258,-151.0,0.00024962,7]
[387188074,1758623440267,-151.0,0.00024962,7]
[387188075,1758623440277,-524.983422,0.00024962,7]
[387188076,1758623440286,-524.983422,0.00024962,7]
[387188077,1758623440295,-524.983422,0.00024962,7]
[387188078,1758623440304,-524.983422,0.00024962,7]
[387188079,1758623440313,-151.0,0.00024962,7]
[387188080,1758623440322,-151.0,0.00024962,7]
[387188081,1758623440332,-151.0,0.00024962,7]
[387188082,1758623440341,-151.0,0.00024962,7]
[387188083,1758623440351,-816.78,0.00024966,30]
[387188084,1758623440360,-152.0,0.00024978,3]
[387188085,1758623440370,-500.0,0.00024999,9]
[387188086,1758623440379,-500.0,0.00024999,9]
[387188087,1758623440389,-500.0,0.00024999,9]
[387188088,1758623440398,-500.0,0.00024999,9]
[387188089,1758623440407,-500.0,0.00024999,9]
[387188090,1758623440416,-500.0,0.00024999,9]
[387188091,1758623440426,-500.0,0.00024999,9]
[387188092,1758623440436,-500.0,0.00024999,9]
[387188093,1758623440446,-516.32,0.00025,7]
[387188094,1758623440456,-25000.0,0.00025,2]
[387188095,1758623440466,-228.557268,0.00025085,2]
[387188096,1758623440475,-322.6107,0.00025085,2]
[387188097,1758623440484,-160.74674798,0.00025085,2]
[387188098,1758623440495,-151.0,0.00025085,2]
[387188099,1758623440504,-151.0,0.00025085,2]
[387188100,1758623440514,-151.0,0.00025085,2]
[387188101,1758623440523,-150.0,0.00025133,4]
[387188102,1758623440533,-206.69,0.00025139,7]
[387188103,1758623440544,-516.64379166,0.00025139,7]
[387188104,1758623440554,-1000.0,0.00025163,2]
[387188105,1758623440563,-21784.6381811,0.00025164,2]
[387188106,1758623440572,-169.92549347,0.00025224,2]
[387188107,1758623440582,-4245.0,0.000253,5]
[387188108,1758623440591,-150.0,0.0002535,4]
[387188109,1758623440601,-150.0,0.0002535,4]
[387188110,1758623440610,-150.0,0.0002535,4]
[387188111,1758623440619,-168.46,0.000254,2]
[387188112,1758623440629,-4523.86884064,0.00025409,2]
[387188113,1758623440639,-9655.88780175,0.00025431,2]
[387188114,1758623440648,-600.0,0.00025433,2]
[387188115,1758623440658,-150.0,0.0002548,4]
[387188116,1758623440667,-400.0,0.00025558,2]
[387188117,1758623440676,-150.0,0.00025567,4]
[387188118,1758623440688,-1575.52797771,0.0002574,2]
[387188119,1758623440698,-2353.42481,0.0002574,2]
[387188120,1758623440707,-14644.56011356,0.00025745,4]
[387188121,1758623440717,-200.0,0.00025792,2]
[387188122,1758623440726,-4000.0,0.00025843,4]
[387188123,1758623440736,-2500.0,0.0002588,2]
[387188124,1758623440746,-1000.0,0.0002589,2]
[387188125,1758623440758,-390.45878912,0.000259,2]
[387188126,1758623440767,-3402.8941394,0.000259,3]
[387188127,1758623440777,-9655.88780175,0.000259,2]
[387188128,1758623440968,-2046.22555328,0.000259,2]
[387188129,1758623441006,-4523.86884064,0.000259,2]
[387188130,1758623441015,-1281.50688706,0.000259,2]
[387188131,1758623441025,-188.34710444,0.000259,2]
[387188132,1758623441034,-272.1160299,0.000259,4]
[387188133,1758623441044,-883.46876764,0.000259,2]
[387188134,1758623441054,-152.13,0.00025968,2]
[387188135,1758623441063,-31021.04199,0.0002597,2]
[387188136,1758623441073,-21784.6381811,0.0002597,2]
[387188137,1758623441082,-584.85437646,0.00025974,2]
[387188138,1758623441091,-31021.04199,0.00025978,2]
[387188139,1758623441101,-21784.6381811,0.00025978,2]
[387188140,1758623441110,-31021.04199,0.0002598,2]
[387188141,1758623441119,-65353.9145432,0.0002598,2]
[387188142,1758623441129,-259.53835892,0.0002598,2]
[387188143,1758623441138,-21784.6381811,0.0002598,2]
[387188144,1758623441147,-4027.1743208,0.00025988,2]
[387188145,1758623441156,-10218.1054489,0.00025988,2]
[387188146,1758623441166,-7040.0326578,0.00025988,2]
[387188147,1758623441176,-7634.043662,0.00025988,2]
[387188148,1758623441187,-1166.6165166,0.00025988,2]
[387188149,1758623441197,-2275.1714789,0.00025988,2]
[387188150,1758623441208,-7852.2003344,0.00025988,2]
[387188151,1758623441217,-722.635,0.00025989,12]
[387188152,1758623441226,-87138.5527243,0.0002599,2]
[387188153,1758623441236,-500.0,0.0002599,5]
[387188154,1758623441245,-150.0,0.0002599,2]
[387188155,1758623441254,-257.78680863,0.0002599,2]
[387188156,1758623441263,-328.55181491,0.0002599,2]
[387188157,1758623441272,-399.3168212,0.0002599,2]
[387188158,1758623441281,-470.08182749,0.0002599,2]
[387188159,1758623441291,-540.84683378,0.0002599,2]
[387188160,1758623441300,-611.61184007,0.0002599,2]
[387188161,1758623441309,-682.37684636,0.0002599,2]
[387188162,1758623441319,-753.14185265,0.0002599,2]
[387188163,1758623441328,-823.90685895,0.0002599,2]
[387188164,1758623441338,-151.0,0.0002599,7]
[387188165,1758623441347,-233.177717,0.0002599,7]
[387188166,1758623441356,-151.0,0.0002599,7]
[387188167,1758623441365,-151.0,0.0002599,7]
[387188168,1758623441375,-151.0,0.0002599,7]
[387188169,1758623441385,-155.563145,0.0002599,7]
[387188170,1758623441394,-254.505076,0.0002599,7]
[387188171,1758623441403,-524.983422,0.0002599,7]
[387188172,1758623441412,-524.983422,0.0002599,7]
[387188173,1758623441422,-524.983422,0.0002599,7]
[387188174,1758623441431,-524.983422,0.0002599,7]
[387188175,1758623441440,-152.13,0.0002599,2]
[387188176,1758623441450,-152.13,0.0002599,2]
[387188177,1758623441459,-151.0,0.0002599,7]
[387188178,1758623441469,-281.389105,0.0002599,7]
[387188179,1758623441478,-256.685846,0.0002599,7]
[387188180,1758623441487,-609.804775,0.0002599,7]
[387188181,1758623441497,-609.804775,0.0002599,7]
[387188182,1758623441506,-151.0,0.0002599,7]
[387188183,1758623441516,-609.804775,0.0002599,7]
[387188184,1758623441526,-609.804775,0.0002599,7]
[387188185,1758623441535,-151.0,0.0002599,7]
[387188186,1758623441545,-666.0,0.00025999,2]
[387188187,1758623441554,-300.0,0.00025999,10]
[387188188,1758623441563,-153.40552,0.00025999,7]
[387188189,1758623441573,-151.0,0.00025999,7]
[387188190,1758623441583,-151.0,0.00025999,7]
[387188191,1758623441592,-151.0,0.00025999,7]
[387188192,1758623441602,-151.0,0.00025999,7]
[387188193,1758623441611,-151.0,0.00025999,7]
[387188194,1758623441620,-151.0,0.00025999,7]
[387188195,1758623441629,-151.0,0.00025999,7]
[387188196,1758623441638,-155.105016,0.00025999,7]
[387188197,1758623441647,-335.522893,0.00025999,7]
[387188198,1758623441656,-335.522893,0.00025999,7]
[387188199,1758623441665,-151.0,0.00025999,7]
[387188200,1758623441675,-335.522893,0.00025999,7]
[387188201,1758623441689,-335.522893,0.00025999,7]
[387188202,1758623441699,-156.125754,0.00025999,7]
[387188203,1758623441708,-151.0,0.00025999,7]
[387188204,1758623441717,-151.0,0.00025999,7]
[387188205,1758623441727,-151.0,0.00025999,7]
[387188206,1758623441736,-151.0,0.00025999,7]
[387188207,1758623441745,-151.0,0.00025999,7]
[387188208,1758623441756,-348.122256,0.00025999,7]
[387188209,1758623441765,-151.0,0.00025999,7]
[387188210,1758623441775,-348.122256,0.00025999,7]
[387188211,1758623441784,-151.0,0.00025999,7]
[387188212,1758623441795,-151.0,0.00025999,7]
[387188213,1758623441804,-348.122256,0.00025999,7]
[387188214,1758623441814,-151.0,0.00025999,7]
[387188215,1758623441823,-348.122256,0.00025999,7]
[387188216,1758623441832,-278.107832,0.00025999,7]
[387188217,1758623441841,-151.0,0.00025999,7]
[387188218,1758623441851,-151.0,0.00025999,7]
[387188219,1758623441860,-151.0,0.00025999,7]
[387188220,1758623441870,-151.0,0.00025999,7]
[387188221,1758623441880,-272.408072,0.00025999,7]
[387188222,1758623441889,-151.0,0.00025999,7]
[387188223,1758623441899,-150.0,0.00025999,2]
[387188224,1758623441908,-1000.0,0.00025999,2]
[387188225,1758623441917,-1000.0,0.00025999,2]
[387188226,1758623441927,-1000.0,0.00025999,2]
[387188227,1758623441936,-1071.96016628,0.00026,2]
[387188228,1758623441946,-170836.03700532,0.00026,2]
[387188229,1758623441990,-9439.30576672,0.00026,2]
[387188230,1758623442002,-2970.00001,0.00026,2]
[387188231,1758623442028,-837.26648161,0.00026,2]
[387188232,1758623442093,-37300.0,0.00026,2]
[387188238,1758623442688,-1179.0,0.00023645,2]
[387188239,1758623442697,-151.0,0.000248,7]
[387188240,1758623442707,-151.0,0.00024917,7]
[387188241,1758623442717,-151.0,0.0002599,7]
[387188242,1758623442728,-3899.93334249,0.00026,2]
[387188249,1758623443291,-192456.23703429,0.00026,2]
[387188250,1758623443302,-40791.8414312,0.00026,2]
[387188251,1758623444140,-802540.5655082,0.00026,2]
[387188252,1758623444152,-420.27536907,0.00026,2]
[387188253,1758623445304,-500.0,0.00019999,2]
[387188254,1758623445313,-306.61382914,0.00019999,2]
[387188255,1758623445323,-736.55,0.00022,2]
[387188256,1758623445332,-736.55,0.00023569,2]
[387188257,1758623445341,-151.0,0.000248,7]
[387188258,1758623445350,-151.0,0.000248,7]
[387188259,1758623445360,-516.64379166,0.00024854,2]
[387188260,1758623445371,-151.0,0.00024917,7]
[387188261,1758623445382,-736.55,0.00025139,7]
[387188262,1758623445392,-240.0,0.000253,2]
[387188263,1758623445403,-193.81668286,0.000259,2]
[387188264,1758623445413,-151.0,0.0002599,7]
[387188265,1758623445424,-8665.8374156,0.00026,2]
[387188266,1758623445438,-299.5675,0.00026,2]
[387188267,1758623445467,-433.91266726,0.00026,2]
[387188269,1758623446178,-6041.97021012,0.00026,2]
[387188271,1758623446300,-4447.11187674,0.00026,2]
[387188272,1758623495568,2000.0,0.00030136,120]
[387188580,1758623586065,1500.0,0.00030137,120]
[387188581,1758623593078,1500.0,0.00030137,120]
[387188582,1758623599115,1500.0,0.00030137,120]
[387188583,1758623601063,2000.0,0.00030137,120]
[387188584,1758623607743,1506.0,0.00030137,120]
[387188585,1758623640731,1500.0,0.00030137,120]
[387188587,1758623652784,1872.0,0.00030137,120]
[387188588,1758623668711,4000.0,0.00030137,120]
[387188595,1758623848991,4000.0,0.00030137,120]
[387188596,1758623899598,-181.69759015,0.00023839,46]
[387188597,1758624040364,161.73,0.00012102,2]
[387188598,1758624041020,161.73,0.00018153,2]
[387188600,1758624216548,4000.0,0.00030137,120]
[387188611,1758624632201,-285.0,0.00022,2]
[387188613,1758624632210,-156.57534955,0.00022,2]
[387188615,1758624632219,-516.64379166,0.00022091,2]
[387188623,1758624632489,-65.30586372,0.000221,2]
[387188624,1758624632502,-1440.87413628,0.000221,2]
[387188625,1758624632512,-285.0,0.00022192,7]
[387188626,1758624632521,-500.0,0.000222,2]
[387188627,1758624632531,-859.31,0.00022826,2]
[387188628,1758624632541,-285.0,0.00023014,7]
[387188629,1758624632551,-306.90537,0.00023025,2]
[387188630,1758624632560,-306.90537,0.00023033,2]
[387188631,1758624632571,-3369.82068157,0.00023053,2]
[387188632,1758624632592,-1356.52851063,0.00023053,2]
[387188633,1758624632620,-728.12295122,0.00023053,2]
[387188634,1758624632632,-2385.6564233,0.00023053,2]
[387188635,1758624632645,-630.31,0.00023053,2]
[387188636,1758624632657,-393.08836279,0.00023053,2]
[387188637,1758624632673,-507.8693696,0.00023053,2]
[387188638,1758624632689,-4171.19489007,0.00023053,2]
[387188639,1758624632699,-13542.59118918,0.00023087,2]
[387188640,1758624632709,-13542.59118918,0.00023092,2]
[387188641,1758624632719,-306.90537,0.0002311,2]
[387188642,1758624632729,-13542.59118918,0.00023123,2]
[387188643,1758624632740,-306.90537,0.00023135,2]
[387188644,1758624632752,-306.90537,0.00023148,2]
[387188645,1758624632762,-13542.59118918,0.00023151,2]
[387188646,1758624632773,-13542.59118918,0.00023161,2]
[387188647,1758624632794,-306.90537,0.00023166,2]
[387188648,1758624632805,-13542.59118918,0.00023172,2]
[387188649,1758624632816,-306.90537,0.00023186,2]
[387188650,1758624632826,-230.0,0.000233,2]
[387188651,1758624632836,-181.69759014,0.00023839,46]
[387188652,1758624632847,-2000.0,0.00023839,2]
[387188653,1758624632857,-1200.0,0.00023937,2]
[387188654,1758624632867,-300.0,0.00023938,2]
[387188655,1758624632877,-814.0,0.00023939,2]
[387188656,1758624632888,-5000.0,0.00024,2]
[387188657,1758624632899,-5000.0,0.00024,2]
[387188658,1758624632909,-195.93,0.00024152,2]
[387188659,1758624632920,-292.0,0.00024164,7]
[387188660,1758624632930,-342.63,0.00024166,2]
[387188661,1758624632940,-334.09,0.00024166,2]
[387188662,1758624632950,-853.48,0.00024169,30]
[387188663,1758624632960,-5000.0,0.00024183,2]
[387188664,1758624632970,-300.0,0.000242,2]
[387188665,1758624632980,-161.73,0.00024204,2]
[387188666,1758624632991,-150.0,0.00024206,7]
[387188667,1758624633002,-1000.0,0.00024216,2]
[387188668,1758624633012,-859.31,0.00024294,2]
[387188669,1758624633023,-226.0,0.0002448,2]
[387188670,1758624633034,-163.86,0.00024625,2]
[387188671,1758624633045,-627.87,0.00024658,2]
[387188672,1758624633055,-1000.0,0.0002472,2]
[387188673,1758624633066,-193.7425,0.00024799,2]
[387188674,1758624633078,-181.69759014,0.00024819,48]
[387188675,1758624633090,-171.41,0.00024826,2]
[387188676,1758624633101,-212.67391702,0.00024885,2]
[387188677,1758624633115,-600.0,0.00024885,2]
[387188678,1758624633126,-151.0,0.00024885,2]
[387188679,1758624633138,-151.0,0.00024885,2]
[387188680,1758624633150,-151.0,0.00024885,2]
[387188681,1758624633162,-151.0,0.00024885,2]
[387188682,1758624633174,-151.0,0.00024885,2]
[387188683,1758624633187,-151.0,0.00024885,2]
[387188684,1758624633197,-151.0,0.00024885,2]
[387188685,1758624633208,-151.0,0.00024885,2]
[387188686,1758624633219,-151.0,0.00024885,2]
[387188687,1758624633230,-151.0,0.00024885,2]
[387188688,1758624633242,-151.0,0.00024885,2]
[387188689,1758624633255,-151.0,0.00024885,2]
[387188690,1758624633266,-151.0,0.00024885,2]
[387188691,1758624633277,-151.0,0.00024885,2]
[387188692,1758624633288,-151.0,0.00024885,2]
[387188693,1758624633302,-151.0,0.00024885,2]
[387188694,1758624633313,-151.0,0.00024885,2]
[387188695,1758624633323,-151.0,0.00024885,2]
[387188696,1758624633334,-151.0,0.00024885,2]
[387188697,1758624633344,-151.0,0.00024885,2]
[387188698,1758624633355,-248.14628058,0.00024999,2]
[387188699,1758624633365,-645.25,0.00025,7]
[387188700,1758624633375,-1000.0,0.00025124,2]
[387188701,1758624633385,-2000.0,0.000252,2]
[387188702,1758624633396,-334.09,0.00025374,2]
[387188703,1758624633408,-600.0,0.00025433,2]
[387188704,1758624633418,-151.0,0.00025457,2]
[387188705,1758624633428,-151.238888,0.00025457,2]
[387188706,1758624633438,-646.65982734,0.00025457,2]
[387188707,1758624633448,-890.07760866,0.00025457,2]
[387188708,1758624633458,-8565.75555911,0.00025457,2]
[387188709,1758624633469,-160.0,0.00025457,2]
[387188710,1758624633479,-500.0,0.00025457,2]
[387188711,1758624633489,-500.0,0.00025457,2]
[387188712,1758624633501,-248.71531821,0.00025457,2]
[387188713,1758624633512,-500.0,0.00025457,2]
[387188714,1758624633523,-500.0,0.00025457,2]
[387188715,1758624633534,-500.0,0.00025457,2]
[387188716,1758624633544,-500.0,0.00025457,2]
[387188717,1758624633554,-500.0,0.00025457,2]
[387188718,1758624633564,-500.0,0.00025457,2]
[387188719,1758624633580,-500.0,0.00025457,2]
[387188720,1758624633591,-500.0,0.00025457,2]
[387188721,1758624633602,-151.0,0.00025457,2]
[387188722,1758624633612,-500.0,0.00025457,2]
[387188723,1758624633623,-500.0,0.00025457,2]
[387188724,1758624633633,-500.0,0.00025457,2]
[387188725,1758624633643,-500.0,0.00025457,2]
[387188726,1758624633653,-322.6107,0.00025457,2]
[387188727,1758624633663,-151.0,0.00025457,2]
[387188728,1758624633675,-152.48200017,0.00025457,2]
[387188729,1758624633686,-221.43,0.00025463,2]
[387188730,1758624633697,-8003.74689377,0.00025512,2]
[387188731,1758624633709,-500.0,0.00025574,9]
[387188732,1758624633720,-500.0,0.00025574,9]
[387188733,1758624633730,-418.84265315,0.00025574,9]
[387188734,1758624633745,-81.15734685,0.00025574,9]
[387188735,1758624633755,-500.0,0.00025574,9]
[387188736,1758624633765,-179.70409212,0.00025574,9]
[387188737,1758624633777,-320.29590788,0.00025574,9]
[387188738,1758624633787,-500.0,0.00025574,9]
[387188739,1758624633798,-500.0,0.00025574,9]
[387188740,1758624633809,-500.0,0.00025574,9]
[387188741,1758624633819,-221.0,0.0002567,2]
[387188742,1758624633829,-929.34028295,0.000257,2]
[387188743,1758624633842,-70.65971705,0.000257,2]
[387188744,1758624633852,-235.79,0.000257,2]
[387188745,1758624633861,-150.0,0.00025726,2]
[387188746,1758624633873,-2205.3607,0.00025753,10]
[387188747,1758624633883,-859.31,0.00025763,7]
[387188748,1758624633894,-285.0,0.00025775,7]
[387188749,1758624633904,-3916.51029611,0.00025786,2]
[387188750,1758624633950,-3164.93178166,0.00025786,2]